bitfinex/quotes_BTCUSD_20241124
["timestamp","ask_amount","ask_price","bid_price","bid_amount"]
[1732437653001,0.00840481,97886.0,97885.0,0.0420981]
[1732437654302,0.00544816,97886.0,97885.0,0.0420981]
[1732437654513,0.03159209,97894.0,97885.0,0.0420981]
[1732437654728,0.03159209,97894.0,97888.0,0.15]
[1732437654949,0.03159209,97894.0,97885.0,0.0420981]
[1732437655511,0.03159209,97894.0,97888.0,0.15]
[1732437655911,0.03159209,97894.0,97889.0,0.00180531]
[1732437656116,0.03159209,97894.0,97885.0,0.0420981]
[1732437656316,0.03159209,97897.0,97890.0,0.00180524]
[1732437656643,0.0017186,97904.0,97888.0,0.15]
[1732437656644,0.03159209,97898.0,97888.0,0.15]
[1732437656876,0.03159209,97898.0,97891.0,0.00180537]
[1732437657095,0.03159209,97898.0,97888.0,0.15]
[1732437657299,0.03159209,97898.0,97892.0,0.00180537]
[1732437657528,0.1204,97897.0,97892.0,0.00180537]
[1732437657763,0.1204,97897.0,97885.0,0.0420981]
[1732437657963,0.1204,97897.0,97893.0,0.00180524]
[1732437658111,0.1204,97897.0,97888.0,0.15]
[1732437658307,0.1204,97897.0,97894.0,0.00180763]
[1732437658739,0.1204,97897.0,97885.0,0.0420981]
[1732437659067,0.1204,97897.0,97895.0,0.0018075]
[1732437659445,0.1204,97897.0,97885.0,0.0420981]
[1732437659667,0.03159209,97894.0,97888.0,0.15]
[1732437660110,0.03159209,97896.0,97889.0,0.00180763]
[1732437660562,0.1204,97897.0,97889.0,0.00180763]
[1732437660563,0.03159209,97894.0,97889.0,0.00180763]
[1732437660832,0.03159209,97894.0,97885.0,0.0420981]
[1732437660833,0.0497,97893.0,97890.0,0.00180769]
[1732437661062,0.0497,97891.0,97890.0,0.00180769]
[1732437661297,0.0794,97890.0,97885.0,0.0420981]
[1732437661525,0.0497,97889.0,97885.0,0.0420981]
[1732437661745,0.0774,97888.0,97885.0,0.0420981]
[1732437661959,0.0497,97887.0,97885.0,0.0420981]
[1732437664420,0.0497,97887.0,97885.0,0.04181697]
[1732437674617,0.04658947,97887.0,97885.0,0.04181697]
[1732437675988,0.04658947,97887.0,97886.0,0.00181139]
[1732437676221,0.04658947,97887.0,97885.0,0.04181697]
[1732437676445,0.04658947,97887.0,97886.0,0.00181145]
[1732437676966,0.04658947,97887.0,97885.0,0.04181697]
[1732437677191,0.04658947,97887.0,97886.0,0.00181145]
[1732437677401,0.04658947,97887.0,97885.0,0.04181697]
[1732437677610,0.04658947,97887.0,97886.0,0.00181145]
[1732437677805,0.04658947,97887.0,97885.0,0.04181697]
[1732437678031,0.04658947,97887.0,97886.0,0.00181145]
[1732437678472,0.04658947,97887.0,97885.0,0.04181697]
[1732437678681,0.04658947,97887.0,97886.0,0.00181145]
[1732437679102,0.04658947,97887.0,97885.0,0.04181697]
[1732437679318,0.04658947,97887.0,97886.0,0.00181145]
[1732437679806,0.04658947,97887.0,97885.0,0.04181697]
[1732437680034,0.04658947,97887.0,97886.0,0.00181145]
[1732437680463,0.04658947,97887.0,97885.0,0.04181697]
[1732437680707,0.002,97886.0,97885.0,0.04181697]
[1732437680916,0.0516,97886.0,97885.0,0.04181697]
[1732437681354,0.08319209,97886.0,97885.0,0.04181697]
[1732437681560,0.16409209,97886.0,97885.0,0.04181697]
[1732437686842,0.16209209,97886.0,97885.0,0.04181697]
[1732437687273,0.16409209,97886.0,97885.0,0.04181697]
[1732437690184,0.16409209,97886.0,97885.0,0.04363099]
[1732437691527,0.16209209,97886.0,97885.0,0.04363099]
[1732437691963,0.16209209,97886.0,97885.0,0.04181697]
[1732437692221,0.16209209,97886.0,97885.0,0.04363292]
[1732437712845,0.0809,97907.0,97886.0,0.0489]
[1732437713257,0.0809,97907.0,97887.0,0.00187178]
[1732437713486,0.2,97935.0,97887.0,0.00187178]
[1732437713672,0.13682325,97948.0,97888.0,0.0774]
[1732437713673,0.0809,97913.0,97888.0,0.0774]
[1732437714058,0.0809,97913.0,97889.0,0.20179313]
[1732437715713,0.00102152,97912.0,97888.0,0.02988006]
[1732437715886,0.00102152,97912.0,97890.0,0.00180039]
[1732437716103,0.0809,97919.0,97891.0,0.00102138]
[1732437716104,0.04088468,97919.0,97891.0,0.00102138]
[1732437716456,0.0485,97923.0,97885.0,0.04181697]
[1732437716457,0.0465,97923.0,97892.0,0.08412136]
[1732437716658,0.0465,97923.0,97892.0,0.085916]
[1732437718698,0.0465,97923.0,97893.0,0.0476]
[1732437718919,0.0465,97923.0,97894.0,0.13172136]
[1732437719149,0.0465,97923.0,97895.0,0.15]
[1732437719385,0.002,97926.0,97899.0,0.15]
[1732437719606,0.002,97926.0,97900.0,0.00102133]
[1732437720057,0.0809,97928.0,97900.0,0.00179024]
[1732437720260,0.0465,97930.0,97902.0,0.15]
[1732437720676,0.08,97934.0,97904.0,0.15]
[1732437720884,0.002,97933.0,97904.0,0.15]
[1732437721100,0.002,97933.0,97905.0,0.00179001]
[1732437721555,0.0017184,97923.0,97906.0,0.00102123]
[1732437722006,0.0017184,97923.0,97907.0,0.00178552]
[1732437722292,0.0017184,97923.0,97904.0,0.19215024]
[1732437722506,0.0017184,97923.0,97908.0,0.00178544]
[1732437722742,0.0017184,97923.0,97905.0,0.00178566]
[1732437722954,0.0017184,97923.0,97909.0,0.00178537]
[1732437723196,0.0017184,97923.0,97906.0,0.00178559]
[1732437723412,0.0017184,97923.0,97910.0,0.00178529]
[1732437723823,0.0017184,97923.0,97904.0,0.19215024]
[1732437724045,0.0017184,97923.0,97911.0,0.00178522]
[1732437724290,0.0017184,97923.0,97904.0,0.19215024]
[1732437724507,0.0017184,97923.0,97912.0,0.00178515]
[1732437724723,0.0017184,97923.0,97904.0,0.19215024]
[1732437724937,0.0017184,97923.0,97913.0,0.00178507]
[1732437725164,0.0017184,97923.0,97904.0,0.19215024]
[1732437725411,0.0017184,97923.0,97914.0,0.001785]
[1732437725650,0.0017184,97923.0,97904.0,0.19215024]
[1732437725894,0.0017184,97923.0,97915.0,0.00178492]
[1732437726122,0.0017184,97923.0,97904.0,0.19215024]
[1732437726352,0.0017184,97923.0,97916.0,0.00178485]
[1732437726573,0.0017184,97923.0,97904.0,0.19215024]
[1732437726767,0.0017184,97923.0,97917.0,0.00177204]
[1732437727248,0.0017184,97923.0,97904.0,0.19215024]
[1732437727469,0.0017184,97923.0,97918.0,0.00177171]
[1732437727720,0.0017184,97923.0,97905.0,0.00102123]
[1732437728195,0.0017184,97923.0,97906.0,0.00177216]
[1732437728439,0.0017184,97923.0,97907.0,0.00102123]
[1732437728665,0.0017184,97923.0,97907.0,0.00279332]
[1732437732813,0.0017184,97923.0,97907.0,0.00365222]
[1732437733044,0.00146259,97923.0,97907.0,0.00365222]
[1732437734796,0.00146259,97923.0,97907.0,0.00365222]
[1732437735345,0.0017182,97929.0,97907.0,0.00365222]
[1732437735573,0.0017182,97929.0,97909.0,0.227]
[1732437735782,0.0017182,97929.0,97910.0,0.00279353]
[1732437737633,0.0017182,97929.0,97910.0,0.00177231]
[1732437738284,0.002,97927.0,97911.0,0.00102122]
[1732437738733,0.002,97927.0,97912.0,0.00171898]
[1732437740013,0.002,97927.0,97909.0,0.227]
[1732437740228,0.002,97927.0,97913.0,0.00171891]
[1732437740445,0.002,97924.0,97909.0,0.227]
[1732437740660,0.0017182,97929.0,97909.0,0.227]
[1732437740661,0.002,97927.0,97914.0,0.00171885]
[1732437740868,0.002,97927.0,97909.0,0.227]
[1732437741106,0.002,97927.0,97915.0,0.00171878]
[1732437741325,0.002,97927.0,97909.0,0.227]
[1732437741528,0.002,97924.0,97916.0,0.00171885]
[1732437741734,0.002,97924.0,97910.0,0.00102122]
[1732437742189,0.002,97924.0,97911.0,0.00171907]
[1732437742595,0.002,97924.0,97911.0,0.001719]
[1732437743203,0.002,97926.0,97911.0,0.00274022]
[1732437743528,0.002,97924.0,97911.0,0.00274022]
[1732437744165,0.002,97926.0,97911.0,0.00274022]
[1732437744373,0.002,97924.0,97911.0,0.00274022]
[1732437745218,0.002,97927.0,97911.0,0.00274022]
[1732437745450,0.002,97927.0,97911.0,0.001719]
[1732437746142,0.002,97924.0,97911.0,0.001719]
[1732437746571,0.002,97926.0,97911.0,0.001719]
[1732437746780,0.002,97924.0,97911.0,0.001719]
[1732437747003,0.002,97926.0,97911.0,0.001719]
[1732437747184,0.129,97925.0,97911.0,0.001719]
[1732437747731,0.129,97925.0,97910.0,0.0008589]
[1732437748141,0.129,97925.0,97911.0,0.00182701]
[1732437748342,0.129,97925.0,97910.0,0.0008589]
[1732437748555,0.129,97925.0,97911.0,0.00182701]
[1732437748803,0.129,97925.0,97910.0,0.0008589]
[1732437749010,0.129,97925.0,97912.0,0.00182693]
[1732437749208,0.129,97925.0,97910.0,0.0008589]
[1732437749435,0.129,97925.0,97913.0,0.00182685]
[1732437749665,0.002,97924.0,97910.0,0.0008589]
[1732437750255,0.002,97924.0,97911.0,0.00182693]
[1732437750481,0.002,97924.0,97910.0,0.0008589]
[1732437750684,0.002,97924.0,97912.0,0.00182685]
[1732437750891,0.002,97924.0,97910.0,0.0008589]
[1732437751347,0.129,97925.0,97911.0,0.00182693]
[1732437751553,0.002,97924.0,97911.0,0.00182693]
[1732437751757,0.129,97925.0,97910.0,0.0008589]
[1732437752198,0.129,97925.0,97911.0,0.00182701]
[1732437752472,0.002,97921.0,97911.0,0.00182701]
[1732437752680,0.002,97921.0,97910.0,0.0008589]
[1732437752914,0.002,97921.0,97912.0,0.00182907]
[1732437753147,0.129,97925.0,97911.0,0.00183012]
[1732437753148,0.002,97912.0,97911.0,0.00183012]
[1732437753388,0.002,97912.0,97910.0,0.0008589]
[1732437753389,0.002,97920.0,97910.0,0.0008589]
[1732437753590,0.129,97925.0,97910.0,0.0008589]
[1732437753591,0.002,97912.0,97911.0,0.0018294]
[1732437753799,0.049,97914.0,97911.0,0.0018294]
[1732437754895,0.002,97913.0,97911.0,0.0018294]
[1732437755108,0.049,97914.0,97911.0,0.0018294]
[1732437755321,0.049,97914.0,97910.0,0.0008589]
[1732437755551,0.049,97914.0,97912.0,0.00182948]
[1732437755769,0.049,97914.0,97911.0,0.00182956]
[1732437755992,0.049,97914.0,97913.0,0.0018294]
[1732437756258,0.08,97913.0,97912.0,0.00182948]
[1732437756476,0.08,97913.0,97910.0,0.0008589]
[1732437757525,0.082,97913.0,97910.0,0.0008589]
[1732437757988,0.08,97913.0,97910.0,0.0008589]
[1732437759129,0.049,97914.0,97910.0,0.0008589]
[1732437762039,0.049,97914.0,97911.0,0.0018315]
[1732437762492,0.049,97914.0,97910.0,0.0008589]
[1732437762698,0.049,97914.0,97912.0,0.00183142]
[1732437762930,0.04865267,97914.0,97911.0,0.1518315]
[1732437763136,0.04865267,97914.0,97913.0,0.00183134]
[1732437763314,0.04865267,97914.0,97912.0,0.00183142]
[1732437763519,0.04865267,97914.0,97913.0,0.00183134]
[1732437763724,0.04865267,97914.0,97911.0,0.15]
[1732437764157,0.002,97917.0,97912.0,0.00183142]
[1732437765010,0.002,97917.0,97910.0,0.0008589]
[1732437765235,0.002,97917.0,97913.0,0.00183158]
[1732437765446,0.002,97916.0,97913.0,0.00183158]
[1732437765658,0.002,97916.0,97914.0,0.0018315]
[1732437765871,0.002,97916.0,97910.0,0.0008589]
[1732437766111,0.0488,97915.0,97910.0,0.0008589]
[1732437768548,0.02302679,97915.0,97910.0,0.0008589]
[1732437769620,0.002,97916.0,97910.0,0.0008589]
[1732437771440,0.02422526,97924.0,97910.0,0.0008589]
[1732437772603,0.0488,97923.0,97910.0,0.0008589]
[1732437779874,0.0505178,97923.0,97910.0,0.0008589]
[1732437780716,0.0505178,97923.0,97911.0,0.00183093]
[1732437783459,0.0489,97940.0,97914.0,0.0454]
[1732437783669,0.0489,97940.0,97915.0,0.0454]
[1732437783875,0.0489,97940.0,97916.0,0.0454]
[1732437784118,0.0489,97940.0,97916.0,0.04709098]
[1732437786074,0.023,97939.0,97916.0,0.04709098]
[1732437786701,0.023,97939.0,97916.0,0.08800851]
[1732437788263,0.0489,97940.0,97916.0,0.08800851]
[1732437788264,0.023,97940.0,97916.0,0.08800851]
[1732437788514,0.0755,97937.0,97916.0,0.08800851]
[1732437790097,0.0489,97936.0,97916.0,0.04260851]
[1732437791292,0.023,97935.0,97916.0,0.04260851]
[1732437793015,0.128,97932.0,97916.0,0.04260851]
[1732437793230,0.023,97928.0,97916.0,0.04091753]
[1732437793437,0.023,97928.0,97910.0,0.0008589]
[1732437793646,0.023,97928.0,97917.0,0.00182685]
[1732437793860,0.023,97928.0,97910.0,0.0008589]
[1732437794064,0.023,97928.0,97918.0,0.00182677]
[1732437794279,0.023,97928.0,97910.0,0.0008589]
[1732437794485,0.023,97928.0,97919.0,0.00182669]
[1732437794698,0.023,97928.0,97910.0,0.0008589]
[1732437794912,0.023,97928.0,97920.0,0.00182661]
[1732437795146,0.023,97928.0,97910.0,0.0008589]
[1732437795587,0.023,97928.0,97911.0,0.00182733]
[1732437799555,0.023,97926.0,97911.0,0.00182733]
[1732437800583,0.023,97926.0,97910.0,0.0008589]
[1732437801024,0.023,97924.0,97910.0,0.0008589]
[1732437802746,0.023,97926.0,97910.0,0.0008589]
[1732437803001,0.023,97922.0,97910.0,0.0008589]
[1732437808820,0.423,97920.0,97910.0,0.0008589]
[1732437809038,0.023,97918.0,97910.0,0.0008589]
[1732437809265,0.023,97915.0,97910.0,0.0008589]
[1732437809507,0.023,97913.0,97910.0,0.0008589]
[1732437824405,0.023,97911.0,97910.0,0.0008589]
[1732437826023,0.423,97911.0,97910.0,0.0008589]
[1732437826235,0.553,97911.0,97910.0,0.0008589]
[1732437826481,0.555,97911.0,97910.0,0.0008589]
[1732437827601,0.555,97911.0,97910.0,0.0007884]
[1732437831455,0.95338413,97911.0,97910.0,0.0007884]
[1732437833216,0.2,97899.0,97867.0,0.09474631]
[1732437833437,0.153,97898.0,97879.0,0.00923648]
[1732437833647,0.153,97898.0,97835.0,0.0014875]
[1732437833896,0.153,97898.0,97879.0,0.0100977]
[1732437834100,0.153,97898.0,97843.0,0.00014482]
[1732437834310,0.153,97898.0,97879.0,0.00988889]
[1732437834524,0.153,97898.0,97843.0,0.00014482]
[1732437834747,0.023,97896.0,97879.0,0.00988889]
[1732437834983,0.023,97896.0,97833.0,0.44114958]
[1732437835199,0.023,97897.0,97879.0,0.0102021]
[1732437835416,0.023,97897.0,97834.0,0.15]
[1732437835639,0.2,97902.0,97876.0,0.01017599]
[1732437835640,0.023,97893.0,97876.0,0.01017599]
[1732437835862,0.023,97893.0,97839.0,0.002]
[1732437836083,0.023,97893.0,97876.0,0.01012379]
[1732437836296,0.023,97893.0,97845.0,0.1311]
[1732437836525,0.023,97893.0,97877.0,0.0478]
[1732437837028,0.023,97893.0,97878.0,0.00159308]
[1732437837918,0.023,97895.0,97878.0,0.00159308]
[1732437839901,0.023,97895.0,97878.0,0.0424603]
[1732437840607,0.023,97893.0,97878.0,0.0424603]
[1732437841262,0.023,97893.0,97878.0,0.04086722]
[1732437841740,0.023,97893.0,97877.0,0.0008591]
[1732437843081,0.023,97893.0,97877.0,0.04191248]
[1732437843968,0.023,97898.0,97878.0,0.0768]
[1732437844680,0.023,97898.0,97877.0,0.04191248]
[1732437845347,0.03109926,97897.0,97877.0,0.04191248]
[1732437845594,0.023,97896.0,97877.0,0.04191248]
[1732437846470,0.0487,97899.0,97877.0,0.04191248]
[1732437846471,0.023,97898.0,97877.0,0.04191248]
[1732437846814,0.023,97898.0,97878.0,0.00159911]
[1732437848818,0.2791,97900.0,97878.0,0.00159911]
[1732437848819,0.023,97896.0,97878.0,0.00159911]
[1732437849036,0.023,97896.0,97879.0,0.03227892]
[1732437849506,0.023,97896.0,97880.0,0.00159879]
[1732437850224,0.023,97896.0,97877.0,0.04191248]
[1732437850664,0.023,97896.0,97878.0,0.00159903]
[1732437858696,0.0764,97895.0,97878.0,0.00159903]
[1732437858935,0.023,97894.0,97878.0,0.00159903]
[1732437859581,0.023,97892.0,97878.0,0.00159903]
[1732437859859,0.023,97890.0,97878.0,0.00159903]
[1732437860062,0.023,97890.0,97877.0,0.04191248]
[1732437860267,0.023,97890.0,97878.0,0.00921038]
[1732437860478,0.023,97890.0,97877.0,0.04191248]
[1732437860691,0.023,97890.0,97878.0,0.00921038]
[1732437860900,0.023,97890.0,97877.0,0.04191248]
[1732437861146,0.023,97890.0,97878.0,0.00921038]
[1732437861344,0.023,97890.0,97877.0,0.04191248]
[1732437861563,0.023,97890.0,97878.0,0.00921038]
[1732437861776,0.023,97890.0,97877.0,0.04191248]
[1732437862010,0.023,97890.0,97878.0,0.00921038]
[1732437862211,0.023,97890.0,97877.0,0.04191248]
[1732437862439,0.023,97890.0,97878.0,0.00921038]
[1732437862645,0.023,97890.0,97877.0,0.04191248]
[1732437862862,0.023,97890.0,97878.0,0.00921038]
[1732437863088,0.023,97890.0,97877.0,0.04191248]
[1732437863298,0.023,97890.0,97878.0,0.00921038]
[1732437863503,0.023,97890.0,97877.0,0.04191248]
[1732437863764,0.023,97890.0,97878.0,0.00921038]
[1732437863978,0.023,97888.0,97877.0,0.04191248]
[1732437864196,0.0474,97887.0,97877.0,0.04191248]
[1732437864403,0.023,97886.0,97877.0,0.04191248]
[1732437866633,0.0777,97885.0,97877.0,0.04191248]
[1732437866858,0.023,97884.0,97877.0,0.04191248]
[1732437870288,0.0777,97885.0,97877.0,0.04191248]
[1732437872912,0.07733202,97885.0,97877.0,0.04191248]
[1732437873780,0.0017194,97896.0,97877.0,0.04191248]
[1732437873781,0.046,97894.0,97877.0,0.04191248]
[1732437874885,0.023,97893.0,97877.0,0.04191248]
[1732437875119,0.046,97892.0,97877.0,0.04191248]
[1732437875418,0.046,97890.0,97877.0,0.04191248]
[1732437875849,0.046,97887.0,97877.0,0.04191248]
[1732437876061,0.023,97886.0,97877.0,0.04191248]
[1732437877592,0.02125985,97886.0,97877.0,0.04191248]
[1732437877849,0.046,97887.0,97858.0,0.03409954]
[1732437878101,0.0784,97886.0,97858.0,0.07462988]
[1732437878305,0.046,97885.0,97859.0,0.00155686]
[1732437879236,0.046,97883.0,97859.0,0.00155686]
[1732437879668,0.046,97883.0,97858.0,0.03383351]
[1732437880173,0.046,97883.0,97859.0,0.00143752]
[1732437880407,0.0772,97881.0,97859.0,0.00143752]
[1732437880626,0.0474,97880.0,97859.0,0.00143752]
[1732437880853,0.0474,97880.0,97858.0,0.03383351]
[1732437881279,0.0474,97880.0,97859.0,0.00143728]
[1732437888516,0.0772,97879.0,97859.0,0.00229668]
[1732437888719,0.0474,97878.0,97859.0,0.00229668]
[1732437891918,0.0772,97877.0,97859.0,0.00229668]
[1732437892138,0.0474,97876.0,97859.0,0.00229668]
[1732437892353,0.0474,97876.0,97859.0,0.0008594]
[1732437894104,0.0772,97875.0,97859.0,0.0008594]
[1732437894340,0.0474,97874.0,97859.0,0.0008594]
[1732437896162,0.0474,97874.0,97849.0,0.05318497]
[1732437896377,0.0474,97874.0,97873.0,0.0093678]
[1732437896591,0.0474,97874.0,97850.0,0.0014405]
[1732437896813,0.0474,97874.0,97873.0,0.0093939]
[1732437897029,0.0474,97874.0,97851.0,0.00144042]
[1732437897244,0.0474,97874.0,97873.0,0.0093678]
[1732437897482,0.0474,97874.0,97848.0,0.0806597]
[1732437897710,0.0474,97874.0,97873.0,0.00928949]
[1732437897922,0.0474,97874.0,97849.0,0.00144058]
[1732437898147,0.0474,97874.0,97873.0,0.0093939]
[1732437898360,0.0474,97874.0,97849.0,0.15]
[1732437898361,0.0474,97874.0,97850.0,0.0014405]
[1732437898601,0.0474,97874.0,97873.0,0.0093678]
[1732437898808,0.0474,97874.0,97851.0,0.00144042]
[1732437899137,0.0474,97874.0,97873.0,0.0093678]
[1732437899379,0.0474,97874.0,97852.0,0.00144034]
[1732437899607,0.0474,97874.0,97873.0,0.00928949]
[1732437899825,0.0474,97874.0,97853.0,0.00144026]
[1732437900053,0.0474,97874.0,97873.0,0.0093678]
[1732437900269,0.0474,97874.0,97849.0,0.15]
[1732437900497,0.0474,97874.0,97873.0,0.0093678]
[1732437900733,0.0474,97874.0,97850.0,0.0014405]
[1732437900942,0.0474,97874.0,97873.0,0.0093678]
[1732437901161,0.0474,97874.0,97848.0,0.12135351]
[1732437901162,0.0474,97874.0,97851.0,0.00144042]
[1732437901372,0.0017188,97885.0,97848.0,0.04155351]
[1732437901373,0.0485,97872.0,97870.0,0.0093939]
[1732437901591,0.0485,97872.0,97852.0,0.00144034]
[1732437901812,0.0485,97872.0,97870.0,0.00944611]
[1732437902034,0.0485,97872.0,97853.0,0.00137948]
[1732437902273,0.0485,97872.0,97870.0,0.00942001]
[1732437902486,0.0485,97872.0,97854.0,0.00138037]
[1732437902706,0.0485,97872.0,97870.0,0.00942001]
[1732437902923,0.0485,97872.0,97849.0,0.0008596]
[1732437903165,0.0485,97872.0,97870.0,0.00942001]
[1732437903395,0.0485,97872.0,97850.0,0.00138069]
[1732437903611,0.0485,97872.0,97870.0,0.00942001]
[1732437903825,0.0485,97872.0,97851.0,0.00138061]
[1732437904036,0.0485,97872.0,97849.0,0.0008596]
[1732437904037,0.0485,97872.0,97870.0,0.00942001]
[1732437904217,0.0485,97872.0,97852.0,0.00138053]
[1732437904468,0.0485,97872.0,97870.0,0.00942001]
[1732437904700,0.0485,97872.0,97853.0,0.00138045]
[1732437904912,0.0485,97872.0,97870.0,0.00942001]
[1732437905124,0.0485,97872.0,97854.0,0.00138037]
[1732437905331,0.0485,97872.0,97870.0,0.00931559]
[1732437905557,0.0485,97872.0,97855.0,0.00138029]
[1732437905796,0.0485,97872.0,97870.0,0.00942001]
[1732437906064,0.0485,97872.0,97849.0,0.0008596]
[1732437906287,0.0485,97872.0,97870.0,0.00942001]
[1732437906503,0.0485,97872.0,97850.0,0.00138069]
[1732437906715,0.0485,97872.0,97870.0,0.0093939]
[1732437906928,0.0803,97870.0,97851.0,0.00138061]
[1732437907175,0.2,97880.0,97859.0,0.00942001]
[1732437907176,0.0485,97869.0,97859.0,0.00942001]
[1732437907398,0.2,97880.0,97860.0,0.00923728]
[1732437907399,0.0485,97867.0,97860.0,0.00923728]
[1732437907607,0.2,97880.0,97849.0,0.0008596]
[1732437907608,0.0485,97865.0,97861.0,0.00926338]
[1732437907808,0.0485,97863.0,97862.0,0.00928949]
[1732437908018,0.1288,97863.0,97862.0,0.00931559]
[1732437909948,0.1288,97863.0,97862.0,0.05143373]
[1732437910352,0.1288,97863.0,97862.0,0.0106962]
[1732437910767,0.1288,97863.0,97862.0,0.00931559]
[1732437912804,0.1288,97863.0,97862.0,0.0500975]
[1732437913016,0.1288,97863.0,97862.0,0.00931559]
[1732437913224,0.1288,97863.0,97862.0,0.0106962]
[1732437913436,0.1288,97863.0,97862.0,0.00931559]
[1732437919189,0.1288,97863.0,97862.0,0.05019093]
[1732437919621,0.1288,97863.0,97862.0,0.05157931]
[1732437922602,0.0485,97863.0,97862.0,0.05157931]
[1732437923010,0.0485,97863.0,97862.0,0.05019093]
[1732437923419,0.0485,97863.0,97862.0,0.05159395]
[1732437925341,0.0485,97863.0,97862.0,0.05154918]
[1732437928296,0.0017194,97872.0,97864.0,0.0014002]
[1732437928526,0.0017194,97872.0,97865.0,0.08322172]
[1732437929191,0.0017194,97872.0,97866.0,0.03365213]
[1732437929439,0.0017194,97872.0,97867.0,0.00102167]
[1732437929661,0.0017194,97872.0,97868.0,0.00102167]
[1732437929900,0.0017194,97872.0,97868.0,0.00552155]
[1732437930580,0.0017194,97872.0,97868.0,0.00242155]
[1732437935066,0.0017194,97872.0,97865.0,0.07962155]
[1732437935288,0.0017194,97872.0,97866.0,0.00102164]
[1732437935498,0.0017194,97872.0,97867.0,0.00132916]
[1732437935770,0.0017194,97872.0,97868.0,0.00102164]
[1732437936246,0.0017194,97872.0,97869.0,0.001329]
[1732437936450,0.0017194,97872.0,97870.0,0.00102164]
[1732437936896,0.0017194,97872.0,97871.0,0.00132884]
[1732437937361,0.0017194,97872.0,97866.0,0.00102164]
[1732437937362,0.0017188,97885.0,97866.0,0.00102164]
[1732437937615,0.0017188,97885.0,97862.0,0.04397534]
[1732437937616,0.045,97883.0,97871.0,0.00132884]
[1732437937856,0.045,97883.0,97856.0,0.15]
[1732437937857,0.0010217,97882.0,97867.0,0.00133021]
[1732437938095,0.0010217,97882.0,97861.0,0.0822]
[1732437938322,0.0010217,97882.0,97862.0,0.00102171]
[1732437938556,0.0010217,97882.0,97863.0,0.0008595]
[1732437938774,0.001719,97872.0,97864.0,0.00102171]
[1732437938983,0.001719,97872.0,97864.0,0.00228971]
[1732437942131,0.001719,97872.0,97864.0,0.001268]
[1732437942347,0.001719,97872.0,97865.0,0.00102164]
[1732437942811,0.001719,97872.0,97866.0,0.001267]
[1732437943043,0.001719,97872.0,97867.0,0.00102164]
[1732437943549,0.001719,97872.0,97868.0,0.00126684]
[1732437943783,0.001719,97872.0,97869.0,0.00102164]
[1732437944243,0.001719,97872.0,97870.0,0.00126668]
[1732437944482,0.001719,97872.0,97871.0,0.00102164]
[1732437944697,0.001719,97872.0,97871.0,0.00228824]
[1732437948363,0.045,97883.0,97871.0,0.00211716]
[1732437948585,0.0017188,97885.0,97871.0,0.00211716]
[1732437948586,0.0017188,97885.0,97872.0,0.00102156]
[1732437948841,0.0017188,97885.0,97873.0,0.00102155]
[1732437949069,0.0017188,97885.0,97874.0,0.00102155]
[1732437949286,0.0017188,97885.0,97871.0,0.00085056]
[1732437949523,0.0017188,97885.0,97872.0,0.00102155]
[1732437949886,0.0017188,97885.0,97873.0,0.00126597]
[1732437950106,0.0017188,97885.0,97872.0,0.00102155]
[1732437950990,0.0017188,97885.0,97873.0,0.00126597]
[1732437951224,0.0017188,97885.0,97872.0,0.00102155]
[1732437951437,0.0017188,97885.0,97873.0,0.00126597]
[1732437951881,0.0017188,97885.0,97866.0,0.0031]
[1732437952095,0.0017188,97885.0,97867.0,0.00126645]
[1732437952761,0.0017188,97885.0,97864.0,0.04187927]
[1732437952981,0.0017188,97885.0,97868.0,0.00126637]
[1732437953200,0.0017188,97885.0,97865.0,0.00126661]
[1732437953417,0.0017188,97885.0,97866.0,0.00126653]
[1732437953631,0.0017188,97885.0,97863.0,0.0008595]
[1732437953854,0.0017188,97885.0,97864.0,0.0012667]
[1732437957009,0.0472,97884.0,97864.0,0.0012667]
[1732437961464,0.0472,97884.0,97865.0,0.00412158]
[1732437961855,0.0472,97884.0,97866.0,0.00126602]
[1732437962073,0.0472,97884.0,97870.0,0.15]
[1732437962276,0.0472,97884.0,97871.0,0.0022872]
[1732437962486,0.0489184,97884.0,97872.0,0.0781]
[1732437962690,0.0489184,97884.0,97873.0,0.00228704]
[1732437965435,0.0017184,97884.0,97873.0,0.00228704]
[1732437966728,1e-08,97885.0,97873.0,0.00228704]
[1732437968599,1e-08,97885.0,97873.0,0.19408259]
[1732437970084,1e-08,97885.0,97874.0,0.0031]
[1732437970322,1e-08,97885.0,97875.0,0.00102151]
[1732437970534,1e-08,97885.0,97876.0,0.00102151]
[1732437970955,1e-08,97885.0,97877.0,0.00126524]
[1732437971197,1e-08,97885.0,97878.0,0.0010215]
[1732437971463,1e-08,97885.0,97879.0,0.0010215]
[1732437971683,1e-08,97885.0,97879.0,0.00126262]
[1732437971910,1e-08,97885.0,97880.0,0.00228404]
[1732437972123,1e-08,97885.0,97880.0,0.0010215]
[1732437972271,1e-08,97885.0,97875.0,0.00102149]
[1732437972503,1e-08,97885.0,97876.0,0.00228435]
[1732437974174,1e-08,97885.0,97876.0,0.00126286]
[1732437974597,1e-08,97885.0,97873.0,0.19179555]
[1732437974829,0.0455,97889.0,97877.0,0.00126278]
[1732437975054,0.0455,97889.0,97873.0,0.19179555]
[1732437975296,0.0455,97889.0,97878.0,0.00126302]
[1732437975526,0.0455,97889.0,97873.0,0.19179555]
[1732437975746,0.0455,97889.0,97879.0,0.00126294]
[1732437975966,0.0455,97889.0,97873.0,0.19179555]
[1732437976183,0.0455,97889.0,97880.0,0.00126286]
[1732437976406,0.0455,97889.0,97873.0,0.19179555]
[1732437976851,0.0455,97889.0,97874.0,0.00126334]
[1732437978353,0.0817,97888.0,97874.0,0.00126334]
[1732437980309,0.0486,97887.0,97874.0,0.00126334]
[1732437987522,0.0486,97887.0,97874.0,0.00212234]
[1732437988889,0.01281,97887.0,97874.0,0.00212234]
[1732437989096,0.01281,97887.0,97875.0,0.03327361]
[1732437989565,0.01281,97887.0,97876.0,0.00121301]
[1732437989796,0.01281,97887.0,97877.0,0.00102152]
[1732437990244,0.01281,97887.0,97878.0,0.00121285]